fUSD/lending_fUSD_20251206
["ID","MTS","AMOUNT","RATE_DAILY","PERIOD"]
[396570782,1765055449434,-500.0,0.00016438,2]
[396570784,1765055449443,-500.0,0.00016438,2]
[396570786,1765055449453,-500.0,0.00016438,2]
[396570788,1765055449464,-2184.86,0.00016438,2]
[396570790,1765055449474,-2395.7,0.00016438,2]
[396570792,1765055449484,-1168.06,0.00016438,2]
[396570794,1765055449494,-500.0,0.00016438,2]
[396570796,1765055449503,-2449.53,0.00016438,2]
[396570798,1765055449512,-1216.34,0.00016438,2]
[396570799,1765055449523,-500.0,0.00016438,2]
[396570801,1765055449533,-500.0,0.00016438,2]
[396570803,1765055449542,-500.0,0.00016438,2]
[396570805,1765055449552,-500.0,0.00016438,2]
[396570807,1765055449562,-8683.38,0.00016438,2]
[396570809,1765055449574,-500.0,0.00016438,2]
[396570811,1765055449583,-2205.79,0.00016438,2]
[396570813,1765055449593,-254.046657,0.00016438,2]
[396570815,1765055449602,-254.046657,0.00016438,2]
[396570817,1765055449612,-254.046657,0.00016438,2]
[396570819,1765055449621,-254.046657,0.00016438,2]
[396570821,1765055449630,-777.45,0.00016438,2]
[396570823,1765055449640,-500.0,0.00016438,2]
[396570825,1765055449650,-254.046657,0.00016438,2]
[396570827,1765055449659,-254.046657,0.00016438,2]
[396570829,1765055449669,-500.0,0.00016438,2]
[396570831,1765055449679,-500.0,0.00016438,2]
[396570833,1765055449688,-500.0,0.00016438,2]
[396570834,1765055449698,-254.046657,0.00016438,2]
[396570836,1765055449708,-2624.29,0.00016438,2]
[396570838,1765055449717,-254.046657,0.00016438,2]
[396570840,1765055449727,-500.0,0.00016438,2]
[396570842,1765055449736,-2034.19,0.00016438,2]
[396570844,1765055449746,-500.0,0.00016438,2]
[396570846,1765055449755,-516.89806,0.00016438,2]
[396570848,1765055449764,-516.89806,0.00016438,2]
[396570850,1765055449774,-615.24,0.00016438,2]
[396570852,1765055449783,-516.89806,0.00016438,2]
[396570854,1765055449794,-516.89806,0.00016438,2]
[396570856,1765055449804,-151.0,0.00016438,2]
[396570858,1765055449814,-516.89806,0.00016438,2]
[396570860,1765055449823,-151.0,0.00016438,2]
[396570861,1765055449833,-516.89806,0.00016438,2]
[396570863,1765055449842,-500.0,0.00016438,2]
[396570865,1765055449852,-755.14,0.00016438,2]
[396570867,1765055449861,-500.0,0.00016438,2]
[396570869,1765055449872,-516.89806,0.00016438,2]
[396570871,1765055449882,-516.89806,0.00016438,2]
[396570873,1765055449891,-500.0,0.00016438,2]
[396570875,1765055449901,-2363.81,0.00016438,2]
[396570877,1765055449912,-846.737984,0.00016438,2]
[396570879,1765055449923,-500.0,0.00016438,2]
[396570881,1765055449933,-846.737984,0.00016438,2]
[396570883,1765055449942,-500.0,0.00016438,2]
[396570885,1765055449951,-846.737984,0.00016438,2]
[396570887,1765055449961,-503.57232445,0.00016438,2]
[396570888,1765055449970,-846.737984,0.00016438,2]
[396570890,1765055449981,-2615.62,0.00016438,2]
[396570893,1765055449991,-513.97,0.00016438,2]
[396570894,1765055450001,-846.737984,0.00016438,2]
[396570896,1765055450011,-846.737984,0.00016438,2]
[396570898,1765055450021,-151.0,0.00016438,2]
[396570900,1765055450030,-2652.62,0.00016438,2]
[396570902,1765055450041,-151.0,0.00016438,2]
[396570904,1765055450051,-846.737984,0.00016438,2]
[396570906,1765055450061,-846.737984,0.00016438,2]
[396570908,1765055450070,-500.0,0.00016438,2]
[396570910,1765055450080,-500.0,0.00016438,2]
[396570912,1765055450089,-538.71749559,0.00016438,2]
[396570914,1765055450100,-151.0,0.00016438,2]
[396570916,1765055450109,-500.0,0.00016438,2]
[396570918,1765055450118,-151.0,0.00016438,2]
[396570920,1765055450128,-500.0,0.00016438,2]
[396570922,1765055450138,-605.62,0.00016438,2]
[396570924,1765055450148,-151.0,0.00016438,2]
[396570926,1765055450157,-151.0,0.00016438,2]
[396570927,1765055450167,-151.0,0.00016438,2]
[396570929,1765055450176,-552.98,0.00016438,2]
[396570931,1765055450186,-2793.47,0.00016438,2]
[396570933,1765055450196,-500.0,0.00016438,2]
[396570935,1765055450206,-598.99,0.00016438,2]
[396570937,1765055450215,-173.584678,0.00016438,2]
[396570939,1765055450225,-2559.83,0.00016438,2]
[396570941,1765055450235,-502.8284715,0.00016438,2]
[396570943,1765055450244,-596.3,0.00016438,2]
[396570945,1765055450254,-1379.15,0.00016438,2]
[396570947,1765055450264,-650.48,0.00016438,2]
[396570971,1765055450572,-152.047184,0.00016438,2]
[396570972,1765055450581,-500.0,0.00016438,2]
[396570973,1765055450590,-500.0,0.00016438,2]
[396570974,1765055450599,-500.0,0.00016438,2]
[396570975,1765055450608,-1040.27,0.00016438,2]
[396570976,1765055450617,-151.0,0.00016438,2]
[396570977,1765055450626,-686.73,0.00016438,2]
[396570978,1765055450635,-151.0,0.00016438,2]
[396570979,1765055450645,-500.0,0.00016438,2]
[396570980,1765055450654,-151.0,0.00016438,2]
[396570981,1765055450663,-151.0,0.00016438,2]
[396570982,1765055450672,-2433.95,0.00016438,2]
[396570983,1765055450681,-524.2,0.00016438,2]
[396570984,1765055450690,-151.0,0.00016438,2]
[396570985,1765055450699,-151.0,0.00016438,2]
[396570986,1765055450708,-500.0,0.00016438,2]
[396570987,1765055450717,-504.9334364,0.00016438,2]
[396570988,1765055450726,-288.086986,0.00016438,2]
[396570989,1765055450735,-2068.32,0.00016438,2]
[396570990,1765055450744,-500.0,0.00016438,2]
[396570991,1765055450753,-500.0,0.00016438,2]
[396570992,1765055450762,-500.0,0.00016438,2]
[396570993,1765055450770,-151.0,0.00016438,2]
[396570994,1765055450779,-151.0,0.00016438,2]
[396570995,1765055450788,-1048.67,0.00016438,2]
[396570996,1765055450797,-1798.57,0.00016438,2]
[396570997,1765055450806,-151.0,0.00016438,2]
[396570998,1765055450815,-154.925311,0.00016438,2]
[396570999,1765055450825,-529.76,0.00016438,2]
[396571001,1765055450835,-500.0,0.00016438,2]
[396571002,1765055450844,-500.0,0.00016438,2]
[396571004,1765055450854,-500.0,0.00016438,2]
[396571006,1765055450864,-500.0,0.00016438,2]
[396571008,1765055450873,-2451.79,0.00016438,2]
[396571010,1765055450882,-500.0,0.00016438,2]
[396571012,1765055450891,-500.0,0.00016438,2]
[396571014,1765055450900,-500.0,0.00016438,2]
[396571016,1765055450910,-2114.8,0.00016438,2]
[396571018,1765055450919,-500.0,0.00016438,2]
[396571019,1765055450928,-3712.82,0.00016438,2]
[396571021,1765055450938,-3596.77,0.00016438,2]
[396571023,1765055450947,-500.0,0.00016438,2]
[396571025,1765055450956,-772.24,0.00016438,2]
[396571027,1765055450965,-500.0,0.00016438,2]
[396571029,1765055450974,-763.18,0.00016438,2]
[396571031,1765055450984,-2323.94,0.00016438,2]
[396571033,1765055450993,-500.0,0.00016438,2]
[396571035,1765055451003,-151.0,0.00016438,2]
[396571037,1765055451012,-696.11,0.00016438,2]
[396571039,1765055451021,-503.6940755,0.00016438,2]
[396571041,1765055451030,-151.0,0.00016438,2]
[396571043,1765055451039,-611.27,0.00016438,2]
[396571045,1765055451048,-500.0,0.00016438,2]
[396571047,1765055451058,-500.0,0.00016438,2]
[396571049,1765055451067,-777.77,0.00016438,2]
[396571051,1765055451077,-777.77,0.00016438,2]
[396571053,1765055451086,-500.0,0.00016438,2]
[396571055,1765055451095,-500.0,0.00016438,2]
[396571057,1765055451105,-777.77,0.00016438,2]
[396571059,1765055451114,-777.77,0.00016438,2]
[396571061,1765055451123,-151.0,0.00016438,2]
[396571063,1765055451132,-500.0,0.00016438,2]
[396571065,1765055451143,-777.77,0.00016438,2]
[396571067,1765055451154,-151.0,0.00016438,2]
[396571069,1765055451165,-777.77,0.00016438,2]
[396571071,1765055451175,-777.77,0.00016438,2]
[396571073,1765055451184,-777.77,0.00016438,2]
[396571075,1765055451193,-500.0,0.00016438,2]
[396571077,1765055451203,-500.0,0.00016438,2]
[396571079,1765055451212,-500.0,0.00016438,2]
[396571081,1765055451221,-2701.02,0.00016438,2]
[396571083,1765055451231,-151.0,0.00016438,2]
[396571085,1765055451240,-779.37,0.00016438,2]
[396571087,1765055451250,-500.0,0.00016438,2]
[396571089,1765055451259,-501.94136737,0.00016438,2]
[396571091,1765055451271,-500.0,0.00016438,2]
[396571093,1765055451281,-500.0,0.00016438,2]
[396571095,1765055451290,-500.0,0.00016438,2]
[396571097,1765055451299,-1671.52,0.00016438,2]
[396571099,1765055451310,-1891.67,0.00016438,2]
[396571101,1765055451319,-237.50164851,0.00016438,2]
[396571103,1765055451329,-151.0,0.00016438,2]
[396571105,1765055451339,-528.16,0.00016438,2]
[396571107,1765055451349,-500.0,0.00016438,2]
[396571109,1765055451359,-500.0,0.00016438,2]
[396571111,1765055451368,-500.0,0.00016438,2]
[396571113,1765055451377,-151.0,0.00016438,2]
[396571115,1765055451386,-151.0,0.00016438,2]
[396571117,1765055451396,-160.288808,0.00016438,2]
[396571118,1765055451405,-691.3,0.00016438,2]
[396571120,1765055451414,-502.55054745,0.00016438,2]
[396571122,1765055451424,-500.0,0.00016438,2]
[396571124,1765055451433,-858.99,0.00016438,2]
[396571126,1765055451443,-151.0,0.00016438,2]
[396571128,1765055451452,-151.0,0.00016438,2]
[396571130,1765055451462,-500.0,0.00016438,2]
[396571132,1765055451472,-500.0,0.00016438,2]
[396571134,1765055451481,-1046.23,0.00016438,2]
[396571136,1765055451490,-500.0,0.00016438,2]
[396571138,1765055451500,-500.0,0.00016438,2]
[396571140,1765055451509,-503.05142644,0.00016438,2]
[396571143,1765055451519,-151.0,0.00016438,2]
[396571144,1765055451528,-500.0,0.00016438,2]
[396571146,1765055451537,-302.41941747,0.00016438,2]
[396571149,1765055451547,-820.12,0.00016438,2]
[396571150,1765055451556,-500.0,0.00016438,2]
[396571152,1765055451566,-2179.04,0.00016438,2]
[396571154,1765055451575,-500.0,0.00016438,2]
[396571156,1765055451586,-500.0,0.00016438,2]
[396571158,1765055451595,-13174.03,0.00016438,2]
[396571160,1765055451605,-314.14,0.00016438,2]
[396571162,1765055451614,-518.5,0.00016438,2]
[396571164,1765055451624,-5547.6047674,0.00016459,2]
[396571167,1765055451634,-5585.47725588,0.00016459,2]
[396571169,1765055451643,-1996.0,0.00016472,2]
[396571170,1765055451652,-1323.0,0.00016472,2]
[396571172,1765055451662,-611.0,0.00016472,2]
[396571175,1765055451671,-1605.0,0.00016472,2]
[396571177,1765055451681,-3446.0,0.00016472,2]
[396571178,1765055451691,-614.0,0.00016472,2]
[396571180,1765055451701,-1259.0,0.00016472,2]
[396571182,1765055451711,-4707.0,0.00016472,2]
[396571184,1765055451720,-562.0,0.00016472,2]
[396571186,1765055451729,-6513.0,0.00016472,2]
[396571188,1765055451739,-5547.6047674,0.00016532,2]
[396571190,1765055451748,-5585.47725588,0.00016532,2]
[396571192,1765055451759,-1260.89911105,0.00016569,2]
[396571195,1765055451769,-797.82137324,0.00016598,2]
[396571196,1765055451779,-218.84178791,0.00016604,2]
[396571199,1765055451790,-5547.6047674,0.00016606,2]
[396571201,1765055451799,-5585.47725588,0.00016606,2]
[396571203,1765055451808,-233.62617741,0.00016612,2]
[396571205,1765055451818,-157.43693316,0.00016619,2]
[396571206,1765055451827,-500.0,0.00016619,2]
[396571209,1765055451838,-2023.4543618,0.00016619,2]
[396571210,1765055451848,-1632.0,0.00016653,2]
[396571213,1765055451859,-179.0,0.00016668,2]
[396571214,1765055451869,-233.62617736,0.0001667,2]
[396571216,1765055451880,-5547.6047674,0.00016679,2]
[396571219,1765055451891,-5585.47725588,0.00016679,2]
[396571220,1765055451902,-1358.0,0.00016686,2]
[396571222,1765055451913,-163.26,0.00016692,2]
[396571224,1765055451923,-1996.0,0.00016693,2]
[396571227,1765055451933,-179.0,0.00016697,2]
[396571228,1765055451945,-1996.0,0.00016699,2]
[396571230,1765055451954,-1000.0,0.00016711,2]
[396571232,1765055451963,-777.77,0.00016711,2]
[396571235,1765055451974,-777.77,0.00016711,2]
[396571236,1765055451983,-777.77,0.00016711,2]
[396571238,1765055451992,-777.77,0.00016711,2]
[396571240,1765055452001,-1684.33,0.00016712,2]
[396571242,1765055452010,-16927.9557862,0.00016712,2]
[396571244,1765055452019,-17281.2552041,0.00016712,2]
[396571246,1765055452028,-408.64552003,0.00016712,2]
[396571248,1765055452038,-500.0,0.00016712,2]
[396571250,1765055452047,-2230.08,0.00016712,2]
[396571252,1765055452057,-500.0,0.00016712,2]
[396571254,1765055452066,-500.0,0.00016712,2]
[396571256,1765055452075,-500.0,0.00016712,2]
[396571258,1765055452086,-500.0,0.00016712,2]
[396571260,1765055452095,-500.0,0.00016712,2]
[396571262,1765055452104,-786.47,0.00016712,2]
[396571264,1765055452114,-500.0,0.00016712,2]
[396571266,1765055452124,-500.0,0.00016712,2]
[396571268,1765055452133,-500.0,0.00016712,2]
[396571270,1765055452143,-200.0,0.00016712,2]
[396571272,1765055452152,-500.0,0.00016712,2]
[396571274,1765055452162,-500.0,0.00016712,2]
[396571276,1765055452173,-500.0,0.00016712,2]
[396571278,1765055452183,-1828.82,0.00016712,2]
[396571280,1765055452192,-1752.62,0.00016712,2]
[396571282,1765055452202,-500.0,0.00016712,2]
[396571284,1765055452212,-3068.6449962,0.00016712,2]
[396571286,1765055452222,-295.945209,0.00016712,2]
[396571288,1765055452231,-152.764011,0.00016712,2]
[396571290,1765055452241,-500.0,0.00016712,2]
[396571292,1765055452250,-500.0,0.00016712,2]
[396571294,1765055452259,-500.0,0.00016712,2]
[396571296,1765055452269,-1321.11,0.00016712,2]
[396571298,1765055452282,-151.0,0.00016712,2]
[396571300,1765055452291,-502.73114491,0.00016712,2]
[396571302,1765055452301,-500.0,0.00016712,2]
[396571304,1765055452310,-500.0,0.00016712,2]
[396571306,1765055452322,-500.0,0.00016712,2]
[396571308,1765055452331,-2396.34,0.00016712,2]
[396571310,1765055452341,-500.0,0.00016712,2]
[396571312,1765055452350,-500.0,0.00016712,2]
[396571314,1765055452361,-151.0,0.00016712,2]
[396571316,1765055452370,-151.0,0.00016712,2]
[396571318,1765055452379,-500.0,0.00016712,2]
[396571320,1765055452388,-215.18231,0.00016712,2]
[396571322,1765055452397,-500.0,0.00016712,2]
[396571323,1765055452407,-500.0,0.00016712,2]
[396571325,1765055452417,-175.060837,0.00016712,2]
[396571328,1765055452426,-500.0,0.00016712,2]
[396571330,1765055452435,-151.0,0.00016712,2]
[396571331,1765055452444,-503.50584963,0.00016712,2]
[396571333,1765055452455,-151.0,0.00016712,2]
[396571336,1765055452466,-515.97,0.00016712,2]
[396571337,1765055452475,-500.0,0.00016712,2]
[396571339,1765055452484,-500.0,0.00016712,2]
[396571341,1765055452493,-500.0,0.00016712,2]
[396571343,1765055452503,-500.0,0.00016712,2]
[396571345,1765055452512,-2293.76,0.00016712,2]
[396571347,1765055452522,-500.0,0.00016712,2]
[396571349,1765055452531,-490.40873029,0.00016712,2]
[396571352,1765055452544,-500.0,0.00016712,2]
[396571353,1765055452554,-500.0,0.00016712,2]
[396571355,1765055452564,-500.0,0.00016712,2]
[396571358,1765055452573,-189.67669,0.00016712,2]
[396571360,1765055452583,-505.34542907,0.00016712,2]
[396571362,1765055452592,-500.0,0.00016712,2]
[396571363,1765055452602,-151.0,0.00016712,2]
[396571366,1765055452613,-500.0,0.00016712,2]
[396571367,1765055452622,-151.0,0.00016712,2]
[396571370,1765055452632,-500.0,0.00016712,2]
[396571372,1765055452641,-237.642464,0.00016712,2]
[396571374,1765055452651,-500.0,0.00016712,2]
[396571375,1765055452660,-500.0,0.00016712,2]
[396571378,1765055452669,-151.0,0.00016712,2]
[396571379,1765055452679,-887.54,0.00016712,2]
[396571381,1765055452688,-500.0,0.00016712,2]
[396571383,1765055452698,-151.0,0.00016712,2]
[396571385,1765055452708,-500.0,0.00016712,2]
[396571387,1765055452717,-500.0,0.00016712,2]
[396571389,1765055452727,-500.0,0.00016712,2]
[396571391,1765055452736,-500.0,0.00016712,2]
[396571393,1765055452746,-500.0,0.00016712,2]
[396571395,1765055452755,-500.0,0.00016712,2]
[396571397,1765055452766,-500.0,0.00016712,2]
[396571399,1765055452775,-151.0,0.00016712,2]
[396571401,1765055452784,-151.0,0.00016712,2]
[396571403,1765055452794,-151.0,0.00016712,2]
[396571405,1765055452803,-151.0,0.00016712,2]
[396571407,1765055452813,-151.0,0.00016712,2]
[396571409,1765055452822,-500.0,0.00016712,2]
[396571420,1765055452908,-111602.2123187,0.00016712,2]
[396571422,1765055452917,-500.0,0.00016712,2]
[396571424,1765055452927,-151.0,0.00016712,2]
[396571426,1765055452936,-500.0,0.00016712,2]
[396571428,1765055452945,-151.0,0.00016712,2]
[396571430,1765055452955,-157.138741,0.00016712,2]
[396571432,1765055452963,-151.0,0.00016712,2]
[396571434,1765055452973,-720.41,0.00016712,2]
[396571436,1765055452982,-151.0,0.00016712,2]
[396571438,1765055452992,-278.00854149,0.00016712,2]
[396571440,1765055453001,-500.0,0.00016712,2]
[396571442,1765055453010,-500.0,0.00016712,2]
[396571444,1765055453019,-500.0,0.00016712,2]
[396571446,1765055453028,-151.0,0.00016712,2]
[396571448,1765055453038,-500.0,0.00016712,2]
[396571450,1765055453048,-500.0,0.00016712,2]
[396571452,1765055453057,-151.0,0.00016712,2]
[396571454,1765055453066,-500.0,0.00016712,2]
[396571455,1765055453076,-2188.1,0.00016712,2]
[396571457,1765055453087,-500.0,0.00016712,2]
[396571459,1765055453097,-151.0,0.00016712,2]
[396571461,1765055453106,-151.0,0.00016712,2]
[396571463,1765055453115,-500.0,0.00016712,2]
[396571465,1765055453125,-500.0,0.00016712,2]
[396571467,1765055453135,-151.0,0.00016712,2]
[396571469,1765055453144,-151.0,0.00016712,2]
[396571470,1765055453153,-151.0,0.00016712,2]
[396571471,1765055453162,-151.0,0.00016712,2]
[396571472,1765055453172,-151.0,0.00016712,2]
[396571473,1765055453181,-504.58278905,0.00016712,2]
[396571474,1765055453190,-151.0,0.00016712,2]
[396571475,1765055453199,-583.72,0.00016712,2]
[396571476,1765055453208,-500.0,0.00016712,2]
[396571477,1765055453217,-500.0,0.00016712,2]
[396571478,1765055453226,-500.0,0.00016712,2]
[396571480,1765055453235,-500.0,0.00016712,2]
[396571482,1765055453244,-300.0,0.00016712,2]
[396571484,1765055453254,-627.46,0.00016712,2]
[396571486,1765055453263,-1872.65,0.00016712,2]
[396571488,1765055453274,-518.03650229,0.00016712,2]
[396571490,1765055453284,-775.48,0.00016712,2]
[396571492,1765055453293,-503.11276695,0.00016712,2]
[396571493,1765055453303,-500.0,0.00016712,2]
[396571495,1765055453311,-152.313717,0.00016712,2]
[396571498,1765055453323,-500.0,0.00016712,2]
[396571499,1765055453332,-500.0,0.00016712,2]
[396571501,1765055453342,-2305.83,0.00016712,2]
[396571504,1765055453351,-151.0,0.00016712,2]
[396571506,1765055453361,-500.0,0.00016712,2]
[396571507,1765055453370,-500.0,0.00016712,2]
[396571509,1765055453380,-500.0,0.00016712,2]
[396571511,1765055453389,-500.0,0.00016712,2]
[396571514,1765055453398,-500.0,0.00016712,2]
[396571515,1765055453408,-500.0,0.00016712,2]
[396571517,1765055453418,-500.0,0.00016712,2]
[396571520,1765055453427,-2328.32,0.00016712,2]
[396571522,1765055453436,-500.0,0.00016712,2]
[396571524,1765055453446,-500.0,0.00016712,2]
[396571526,1765055453455,-503.86480271,0.00016712,2]
[396571528,1765055453464,-502.83,0.00016712,2]
[396571529,1765055453473,-500.0,0.00016712,2]
[396571532,1765055453482,-503.76053218,0.00016712,2]
[396571534,1765055453492,-500.0,0.00016712,2]
[396571535,1765055453501,-500.0,0.00016712,2]
[396571537,1765055453510,-500.0,0.00016712,2]
[396571539,1765055453520,-151.0,0.00016712,2]
[396571541,1765055453530,-500.0,0.00016712,2]
[396571543,1765055453539,-500.0,0.00016712,2]
[396571546,1765055453549,-500.0,0.00016712,2]
[396571548,1765055453558,-500.0,0.00016712,2]
[396571550,1765055453567,-1013.7219919,0.00016712,2]
[396571552,1765055453576,-500.0,0.00016712,2]
[396571553,1765055453585,-500.0,0.00016712,2]
[396571556,1765055453596,-277.61718153,0.00016712,2]
[396571558,1765055453605,-703.63,0.00016712,2]
[396571560,1765055453614,-500.0,0.00016712,2]
[396571562,1765055453624,-500.0,0.00016712,2]
[396571564,1765055453634,-500.0,0.00016712,2]
[396571566,1765055453643,-502.63380749,0.00016712,2]
[396571568,1765055453652,-500.0,0.00016712,2]
[396571569,1765055453661,-500.0,0.00016712,2]
[396571571,1765055453670,-151.0,0.00016712,2]
[396571573,1765055453679,-545.85,0.00016712,2]
[396571575,1765055453688,-560.82,0.00016712,2]
[396571577,1765055453698,-500.0,0.00016712,2]
[396571580,1765055453707,-500.0,0.00016712,2]
[396571582,1765055453717,-500.0,0.00016712,2]
[396571584,1765055453726,-500.0,0.00016712,2]
[396571586,1765055453735,-500.0,0.00016712,2]
[396571588,1765055453744,-500.0,0.00016712,2]
[396571590,1765055453755,-500.0,0.00016712,2]
[396571592,1765055453764,-500.0,0.00016712,2]
[396571594,1765055453773,-500.0,0.00016712,2]
[396571596,1765055453781,-500.0,0.00016712,2]
[396571598,1765055453791,-1048.73,0.00016712,2]
[396571600,1765055453800,-500.0,0.00016712,2]
[396571602,1765055453809,-503.41926375,0.00016712,2]
[396571604,1765055453818,-500.0,0.00016712,2]
[396571606,1765055453827,-2427.79,0.00016712,2]
[396571607,1765055453836,-195.60249168,0.00016712,2]
[396571609,1765055453845,-151.0,0.00016712,2]
[396571611,1765055453854,-500.0,0.00016712,2]
[396571613,1765055453863,-500.0,0.00016712,2]
[396571615,1765055453872,-151.0,0.00016712,2]
[396571617,1765055453881,-151.0,0.00016712,2]
[396571619,1765055453890,-500.0,0.00016712,2]
[396571621,1765055453900,-500.0,0.00016712,2]
[396571623,1765055453910,-500.0,0.00016712,2]
[396571625,1765055453919,-500.0,0.00016712,2]
[396571627,1765055453927,-1969.82,0.00016712,2]
[396571629,1765055453937,-500.0,0.00016712,2]
[396571631,1765055453946,-556.03099801,0.00016712,2]
[396571633,1765055453956,-500.0,0.00016712,2]
[396571635,1765055453965,-1939.06,0.00016712,2]
[396571637,1765055453975,-2466.51,0.00016712,2]
[396571639,1765055453983,-150.0,0.00016712,2]
[396571641,1765055453992,-562.41,0.00016712,2]
[396571643,1765055454002,-500.0,0.00016712,2]
[396571645,1765055454011,-500.0,0.00016712,2]
[396571647,1765055454020,-500.0,0.00016712,2]
[396571649,1765055454029,-612.61,0.00016712,2]
[396571651,1765055454038,-500.0,0.00016712,2]
[396571653,1765055454048,-500.0,0.00016712,2]
[396571655,1765055454057,-500.0,0.00016712,2]
[396571657,1765055454067,-500.0,0.00016712,2]
[396571659,1765055454076,-500.0,0.00016712,2]
[396571661,1765055454086,-500.0,0.00016712,2]
[396571663,1765055454095,-500.0,0.00016712,2]
[396571665,1765055454105,-500.0,0.00016712,2]
[396571667,1765055454114,-500.0,0.00016712,2]
[396571669,1765055454123,-500.0,0.00016712,2]
[396571671,1765055454132,-500.0,0.00016712,2]
[396571673,1765055454141,-500.0,0.00016712,2]
[396571675,1765055454151,-628.14803593,0.00016712,2]
[396571677,1765055454160,-500.0,0.00016712,2]
[396571679,1765055454170,-1965.03,0.00016712,2]
[396571681,1765055454179,-2371.21,0.00016712,2]
[396571683,1765055454188,-936.26,0.00016712,2]
[396571685,1765055454197,-500.0,0.00016712,2]
[396571687,1765055454207,-500.0,0.00016712,2]
[396571689,1765055454216,-500.0,0.00016712,2]
[396571691,1765055454225,-500.0,0.00016712,2]
[396571693,1765055454234,-500.0,0.00016712,2]
[396571695,1765055454243,-500.0,0.00016712,2]
[396571696,1765055454253,-500.0,0.00016712,2]
[396571699,1765055454262,-500.0,0.00016712,2]
[396571701,1765055454278,-500.0,0.00016712,2]
[396571703,1765055454288,-500.0,0.00016712,2]
[396571705,1765055454297,-500.0,0.00016712,2]
[396571707,1765055454308,-500.0,0.00016712,2]
[396571709,1765055454318,-500.0,0.00016712,2]
[396571711,1765055454328,-2251.94,0.00016712,2]
[396571713,1765055454338,-500.0,0.00016712,2]
[396571715,1765055454347,-500.0,0.00016712,2]
[396571717,1765055454357,-500.0,0.00016712,2]
[396571719,1765055454366,-2106.76,0.00016712,2]
[396571721,1765055454376,-631.02420226,0.00016712,2]
[396571723,1765055454385,-500.0,0.00016712,2]
[396571725,1765055454394,-500.0,0.00016712,2]
[396571726,1765055454404,-500.0,0.00016712,2]
[396571728,1765055454414,-500.0,0.00016712,2]
[396571730,1765055454423,-1379.52,0.00016712,2]
[396571732,1765055454434,-500.0,0.00016712,2]
[396571734,1765055454443,-500.0,0.00016712,2]
[396571736,1765055454452,-500.0,0.00016712,2]
[396571738,1765055454462,-500.0,0.00016712,2]
[396571740,1765055454471,-1988.09,0.00016712,2]
[396571742,1765055454480,-500.0,0.00016712,2]
[396571744,1765055454490,-500.0,0.00016712,2]
[396571746,1765055454499,-500.0,0.00016712,2]
[396571748,1765055454509,-500.0,0.00016712,2]
[396571750,1765055454518,-504.55558342,0.00016712,2]
[396571752,1765055454528,-500.0,0.00016712,2]
[396571754,1765055454538,-500.0,0.00016712,2]
[396571756,1765055454547,-500.0,0.00016712,2]
[396571758,1765055454556,-500.0,0.00016712,2]
[396571760,1765055454566,-500.0,0.00016712,2]
[396571762,1765055454576,-500.0,0.00016712,2]